bitfinex-derivatives/quotes_ETHF0:USTF0_20260118
["timestamp","ask_amount","ask_price","bid_price","bid_amount"]
[1768735570038,1.01126338,3321.4,3319.7,0.21260281]
[1768735570240,0.21861531,3321.5,3319.7,0.21260281]
[1768735570441,1.01126307,3321.4,3319.7,0.21260281]
[1768735570642,0.21861531,3321.5,3319.7,0.21260281]
[1768735571036,1.01126332,3321.4,3319.7,0.21260281]
[1768735571340,0.21861531,3321.5,3319.7,0.21260281]
[1768735571740,1.01126218,3321.4,3319.7,0.21260281]
[1768735571940,0.21861531,3321.5,3319.7,0.21260281]
[1768735572134,1.01126168,3321.4,3319.7,0.21260281]
[1768735572341,0.21861531,3321.5,3319.7,0.21260281]
[1768735572650,1.0112628,3321.4,3319.7,0.21260281]
[1768735572848,0.21861531,3321.5,3319.7,0.21260281]
[1768735573144,1.01126297,3321.4,3319.7,0.21260281]
[1768735573343,0.21861531,3321.5,3319.7,0.21260281]
[1768735573850,1.01126206,3321.4,3319.7,0.21260281]
[1768735574149,0.21861531,3321.5,3319.7,0.21260281]
[1768735574642,1.01126227,3321.4,3319.7,0.21260281]
[1768735574845,0.21861531,3321.9,3319.7,0.21260281]
[1768735575049,1.22987321,3321.8,3319.7,0.21260281]
[1768735575246,1.0112579,3321.7,3319.7,0.21260281]
[1768735579156,1.22987321,3321.7,3319.7,0.21260281]
[1768735579351,1.0112579,3321.6,3319.7,0.21260281]
[1768735579544,1.0112579,3321.5,3319.7,0.21260281]
[1768735579842,0.21861531,3321.7,3319.7,0.21260281]
[1768735580043,1.01125075,3321.6,3319.7,0.21260281]
[1768735580243,1.01125075,3321.5,3319.7,0.21260281]
[1768735580442,0.21861531,3321.7,3319.7,0.21260281]
[1768735580650,1.0112491,3321.6,3319.7,0.21260281]
[1768735580852,1.0112491,3321.5,3319.7,0.21260281]
[1768735581061,0.21861531,3321.7,3319.7,0.21260281]
[1768735581254,1.01124471,3321.6,3319.7,0.21260281]
[1768735581551,1.01124471,3321.5,3319.7,0.21260281]
[1768735581757,0.21861531,3321.7,3319.7,0.21260281]
[1768735582051,1.01122919,3321.6,3319.7,0.21260281]
[1768735582248,1.01122919,3321.5,3319.7,0.21260281]
[1768735582448,0.21861531,3321.7,3319.7,0.21260281]
[1768735582649,1.0112198,3321.6,3319.7,0.21260281]
[1768735582855,1.0112198,3321.5,3319.7,0.21260281]
[1768735583055,0.21861531,3321.7,3319.7,0.21260281]
[1768735583239,1.01121929,3321.6,3319.7,0.21260281]
[1768735583444,1.01121929,3321.5,3319.7,0.21260281]
[1768735583642,0.21861531,3321.7,3319.7,0.21260281]
[1768735583846,1.01121209,3321.6,3319.7,0.21260281]
[1768735584057,1.01121209,3321.5,3319.7,0.21260281]
[1768735584247,0.21861531,3321.7,3319.7,0.21260281]
[1768735584442,1.01120958,3321.6,3319.7,0.21260281]
[1768735584646,1.01120958,3321.5,3319.7,0.21260281]
[1768735584854,0.21861531,3321.7,3319.7,0.21260281]
[1768735585158,1.01120318,3321.6,3319.7,0.21260281]
[1768735585463,1.01120318,3321.5,3319.7,0.21260281]
[1768735585658,0.21861531,3321.7,3319.7,0.21260281]
[1768735585852,1.01119551,3321.6,3319.7,0.21260281]
[1768735586053,1.01119551,3321.5,3319.7,0.21260281]
[1768735586254,0.21861531,3321.7,3319.7,0.21260281]
[1768735586550,1.01118867,3321.6,3319.7,0.21260281]
[1768735586750,1.01118867,3321.5,3319.7,0.21260281]
[1768735586951,0.21861531,3321.7,3319.7,0.21260281]
[1768735587151,1.01118872,3321.6,3319.7,0.21260281]
[1768735587350,1.01118872,3321.5,3319.7,0.21260281]
[1768735587552,0.21861531,3321.7,3319.7,0.21260281]
[1768735587762,1.01118293,3321.6,3319.7,0.21260281]
[1768735587962,1.01118293,3321.5,3319.7,0.21260281]
[1768735588163,0.21861531,3321.7,3319.9,0.20546433]
[1768735588363,1.01118131,3321.6,3319.9,0.20546433]
[1768735588662,1.01118131,3321.5,3319.9,0.20546433]
[1768735588865,0.21861531,3321.7,3319.9,0.20546433]
[1768735589051,1.0111778,3321.6,3319.9,0.20546433]
[1768735589253,1.0111778,3321.5,3319.9,0.20546433]
[1768735589452,0.21861531,3321.7,3319.9,0.20546433]
[1768735589656,1.01117368,3321.6,3319.9,0.20546433]
[1768735589856,1.01117368,3321.5,3319.9,0.20546433]
[1768735590057,0.21861531,3321.7,3319.9,0.20546433]
[1768735590260,1.01117343,3321.6,3319.9,0.20546433]
[1768735590560,1.01117343,3321.5,3319.9,0.20546433]
[1768735590856,0.21861531,3321.7,3319.9,0.20546433]
[1768735591057,1.01117168,3321.6,3319.9,0.20546433]
[1768735591252,1.01117168,3321.5,3319.9,0.20546433]
[1768735591449,0.21861531,3321.7,3319.9,0.20546433]
[1768735591665,1.0111703,3321.6,3319.9,0.20546433]
[1768735591857,1.0111703,3321.5,3319.9,0.20546433]
[1768735592055,0.21861531,3321.7,3319.9,0.20546433]
[1768735592357,1.01138665,3321.6,3319.9,0.20546433]
[1768735592559,1.01138665,3321.5,3319.9,0.20546433]
[1768735592858,0.21861531,3321.7,3319.9,0.20546433]
[1768735593057,1.01107252,3321.6,3319.9,0.20546433]
[1768735593358,1.01107252,3321.5,3319.9,0.20546433]
[1768735593558,0.21861531,3321.7,3319.9,0.20546433]
[1768735593758,1.01083033,3321.6,3319.9,0.20546433]
[1768735593957,1.01083033,3321.5,3319.9,0.20546433]
[1768735594157,0.21861531,3321.7,3319.9,0.20546433]
[1768735594361,1.01082226,3321.6,3319.9,0.20546433]
[1768735594558,1.01082226,3321.5,3319.9,0.20546433]
[1768735594759,0.21861531,3321.7,3319.9,0.20546433]
[1768735594964,1.01068193,3321.6,3319.9,0.20546433]
[1768735595166,1.01068193,3321.5,3319.9,0.20546433]
[1768735595464,0.21861531,3321.7,3319.9,0.20546433]
[1768735595768,1.01053399,3321.6,3319.9,0.20546433]
[1768735596086,1.01053399,3321.5,3319.9,0.20546433]
[1768735596258,0.21861531,3321.7,3319.9,0.20546433]
[1768735596454,1.0105377,3321.6,3319.9,0.20546433]
[1768735596655,1.0105377,3321.5,3319.9,0.20546433]
[1768735596859,0.21861531,3321.7,3319.9,0.20546433]
[1768735597060,1.20426261,3321.6,3319.9,0.20546433]
[1768735597367,1.01053618,3321.5,3319.9,0.20546433]
[1768735597668,0.19372643,3321.6,3319.9,0.20546433]
[1768735597858,1.01053781,3321.5,3319.9,0.20546433]
[1768735598059,0.19372643,3321.6,3319.9,0.20546433]
[1768735598255,1.01053927,3321.5,3319.9,0.20546433]
[1768735598469,0.19372643,3321.6,3319.9,0.20546433]
[1768735598667,1.01054309,3321.5,3319.9,0.20546433]
[1768735598966,0.19372643,3321.6,3319.9,0.20546433]
[1768735599168,1.01049995,3321.5,3319.9,0.20546433]
[1768735599475,0.19372643,3321.6,3319.9,0.20546433]
[1768735599768,1.01049297,3321.5,3319.9,0.20546433]
[1768735599968,0.19372643,3321.6,3319.9,0.20546433]
[1768735600168,1.01048735,3321.5,3319.9,0.20546433]
[1768735600370,0.19372643,3321.6,3319.9,0.20546433]
[1768735600570,1.01048503,3321.5,3319.9,0.20546433]
[1768735600867,0.19372643,3321.6,3319.9,0.20546433]
[1768735601063,1.01046943,3321.5,3319.9,0.20546433]
[1768735601264,0.19372643,3321.6,3319.9,0.20546433]
[1768735601459,1.01047568,3321.5,3319.9,0.20546433]
[1768735601659,0.19372643,3321.6,3319.9,0.20546433]
[1768735601859,1.01047718,3321.5,3319.9,0.20546433]
[1768735602069,0.19372643,3321.6,3319.9,0.20546433]
[1768735602370,1.01047584,3321.5,3319.9,0.20546433]
[1768735602667,0.19372643,3321.6,3319.9,0.20546433]
[1768735602866,1.01048449,3321.5,3319.9,0.20546433]
[1768735603066,0.19372643,3321.6,3319.9,0.20546433]
[1768735603269,1.01048599,3321.5,3319.9,0.20546433]
[1768735603574,0.19372643,3321.6,3319.9,0.20546433]
[1768735603871,1.01049624,3321.5,3319.9,0.20546433]
[1768735604061,0.19372643,3321.6,3319.9,0.20546433]
[1768735604260,1.01047218,3321.5,3319.9,0.20546433]
[1768735604462,0.19372643,3321.6,3319.9,0.20546433]
[1768735604759,1.01048179,3321.5,3319.9,0.20546433]
[1768735604960,0.19372643,3321.6,3319.9,0.20546433]
[1768735605160,1.01048337,3321.5,3319.9,0.20546433]
[1768735605359,0.19372643,3321.6,3319.9,0.20546433]
[1768735605566,1.01048688,3321.5,3319.9,0.20546433]
[1768735605767,0.19372643,3321.6,3319.9,0.20546433]
[1768735605964,1.01050203,3321.5,3319.9,0.20546433]
[1768735606167,0.19372643,3321.6,3319.9,0.20546433]
[1768735606471,1.01050059,3321.5,3319.9,0.20546433]
[1768735606673,0.19372643,3321.6,3319.9,0.20546433]
[1768735606873,1.01049581,3321.5,3319.9,0.20546433]
[1768735607075,0.19372643,3321.6,3319.9,0.20546433]
[1768735607372,1.01050143,3321.5,3319.9,0.20546433]
[1768735607572,0.19372643,3321.6,3319.9,0.20546433]
[1768735607774,1.01047891,3321.5,3319.9,0.20546433]
[1768735608073,0.19372643,3321.6,3319.9,0.20546433]
[1768735608372,1.01048199,3321.5,3319.9,0.20546433]
[1768735608574,0.19372643,3321.6,3319.9,0.20546433]
[1768735608774,1.01046352,3321.5,3319.9,0.20546433]
[1768735609077,0.19372643,3321.6,3319.9,0.20546433]
[1768735609374,1.01046651,3321.5,3319.9,0.20546433]
[1768735609573,0.19372643,3321.6,3319.9,0.20546433]
[1768735609775,1.01045095,3321.5,3319.9,0.20546433]
[1768735609974,0.19372643,3321.6,3319.9,0.20546433]
[1768735610176,1.01044945,3321.5,3319.9,0.20546433]
[1768735610377,0.19372643,3321.6,3319.9,0.20546433]
[1768735610567,1.01044128,3321.5,3319.9,0.20546433]
[1768735610766,0.19372643,3321.6,3319.9,0.20546433]
[1768735610971,1.01043979,3321.5,3319.9,0.20546433]
[1768735611170,0.19372643,3321.6,3319.9,0.20546433]
[1768735611374,1.01044719,3321.5,3319.9,0.20546433]
[1768735611671,0.19372643,3321.6,3319.9,0.20546433]
[1768735611870,1.01043622,3321.5,3319.9,0.20546433]
[1768735612173,0.19372643,3321.6,3319.9,0.20546433]
[1768735612367,1.01043771,3321.5,3319.9,0.20546433]
[1768735612566,0.19372643,3321.6,3319.9,0.20546433]
[1768735612773,1.01042754,3321.5,3319.9,0.20546433]
[1768735612969,0.19372643,3321.6,3319.9,0.20546433]
[1768735613171,1.01042709,3321.5,3319.9,0.20546433]
[1768735613373,0.19372643,3321.6,3319.9,0.20546433]
[1768735613574,1.01041967,3321.5,3319.9,0.20546433]
[1768735613769,0.19372643,3321.6,3319.9,0.20546433]
[1768735613970,1.01041742,3321.5,3319.9,0.20546433]
[1768735614271,0.19372643,3321.6,3319.9,0.20546433]
[1768735614469,1.01037845,3321.5,3319.9,0.20546433]
[1768735614671,0.19372643,3321.6,3319.9,0.20546433]
[1768735614870,1.01037162,3321.5,3319.9,0.20546433]
[1768735615073,0.19372643,3321.6,3319.9,0.20546433]
[1768735615372,1.01037267,3321.5,3319.9,0.20546433]
[1768735615573,0.19372643,3321.6,3319.9,0.20546433]
[1768735615770,1.01035317,3321.5,3319.9,0.20546433]
[1768735615971,0.19372643,3321.6,3319.9,0.20546433]
[1768735616167,1.01035006,3321.5,3319.9,0.20546433]
[1768735616371,0.19372643,3321.6,3319.9,0.20546433]
[1768735616572,1.01034397,3321.5,3319.9,0.20546433]
[1768735616774,0.19372643,3321.6,3319.9,0.20546433]
[1768735616973,1.01034521,3321.5,3319.9,0.20546433]
[1768735617181,0.19372643,3321.6,3319.9,0.20546433]
[1768735617377,1.01034355,3321.5,3319.9,0.20546433]
[1768735617578,0.19372643,3321.6,3319.9,0.20546433]
[1768735618083,1.0103056,3321.5,3319.9,0.20546433]
[1768735618283,0.19372643,3321.6,3319.9,0.20546433]
[1768735618483,1.01030163,3321.5,3319.9,0.20546433]
[1768735618682,0.19372643,3321.6,3319.9,0.20546433]
[1768735619082,1.0103028,3321.5,3319.9,0.20546433]
[1768735619284,0.19372643,3321.6,3319.9,0.20546433]
[1768735619485,1.0103038,3321.5,3319.9,0.20546433]
[1768735619785,0.19372643,3321.6,3319.9,0.20546433]
[1768735620176,1.01030374,3321.5,3319.9,0.20546433]
[1768735620376,0.19372643,3321.6,3319.9,0.20546433]
[1768735620676,1.01030284,3321.5,3319.9,0.20546433]
[1768735620888,0.19372643,3321.6,3319.9,0.20546433]
[1768735621078,1.01030242,3321.5,3319.9,0.20546433]
[1768735621277,0.19372643,3321.6,3319.9,0.20546433]
[1768735621475,1.01030255,3321.5,3319.9,0.20546433]
[1768735621673,0.19372643,3321.6,3319.9,0.20546433]
[1768735629890,1.00989386,3321.5,3319.9,0.20546433]
[1768735630090,0.19372643,3321.6,3319.9,0.20546433]
[1768735630390,1.00991769,3321.5,3319.9,0.20546433]
[1768735630590,0.19372643,3321.6,3319.9,0.20546433]
[1768735630890,1.00992875,3321.5,3319.9,0.20546433]
[1768735631093,0.19372643,3321.6,3319.9,0.20546433]
[1768735631283,1.00980532,3321.5,3319.9,0.20546433]
[1768735631485,0.19372643,3321.6,3319.9,0.20546433]
[1768735631790,1.00981771,3321.5,3319.9,0.20546433]
[1768735631990,0.19372643,3321.6,3319.9,0.20546433]
[1768735632185,1.00976014,3321.5,3319.9,0.20546433]
[1768735632386,0.19372643,3321.6,3319.9,0.20546433]
[1768735632586,1.00977575,3321.5,3319.9,0.20546433]
[1768735632787,0.19372643,3321.6,3319.9,0.20546433]
[1768735632988,1.0097773,3321.5,3319.9,0.20546433]
[1768735633188,0.19372643,3321.6,3319.9,0.20546433]
[1768735633391,1.00977841,3321.5,3319.9,0.20546433]
[1768735633689,0.19372643,3321.6,3319.9,0.20546433]
[1768735633889,1.0097944,3321.5,3319.9,0.20546433]
[1768735634190,0.19372643,3321.6,3319.9,0.20546433]
[1768735634390,1.00979411,3321.5,3319.9,0.20546433]
[1768735634585,0.19372643,3321.6,3319.9,0.20546433]
[1768735634788,1.00981576,3321.5,3319.9,0.20546433]
[1768735635085,0.19372643,3321.6,3319.9,0.20546433]
[1768735635280,1.00980588,3321.5,3319.9,0.20546433]
[1768735635481,0.19372643,3321.6,3319.9,0.20546433]
[1768735635789,1.00985078,3321.5,3319.9,0.20546433]
[1768735635991,0.19372643,3321.6,3319.9,0.20546433]
[1768735636190,1.00978021,3321.5,3319.9,0.20546433]
[1768735636390,0.19372643,3321.6,3319.9,0.20546433]
[1768735636690,1.00979629,3321.5,3319.9,0.20546433]
[1768735636890,0.19372643,3321.6,3319.9,0.20546433]
[1768735637093,1.00979775,3321.5,3319.9,0.20546433]
[1768735637290,0.19372643,3321.6,3319.9,0.20546433]
[1768735637494,1.0097374,3321.5,3319.9,0.20546433]
[1768735637695,0.19372643,3321.6,3319.9,0.20546433]
[1768735663934,0.19372643,3321.6,3320.8,0.5]
[1768735681248,2.16485924,3322.4,3320.8,0.5]
[1768735681437,0.16265864,3322.3,3320.8,0.5]
[1768735681637,0.16265864,3322.1,3320.8,0.5]
[1768735681938,1.17221655,3322.0,3320.8,0.5]
[1768735682137,0.16265864,3321.8,3320.8,0.5]
[1768735682336,1.00955791,3321.7,3320.8,0.5]
[1768735688548,1.00955791,3321.7,3320.2,0.1724861]
[1768735688747,1.17221655,3321.7,3320.2,0.1724861]
[1768735688949,1.00955791,3321.6,3320.2,0.1724861]
[1768735722975,1.16603298,3321.6,3319.8,2.202]
[1768735723175,1.00955791,3321.5,3319.8,2.35825617]
[1768735723579,1.00955791,3321.5,3319.9,0.15625617]
[1768735731487,0.15647507,3321.4,3319.7,0.15625617]
[1768735755405,0.15838187,3321.2,3319.7,0.15625617]
[1768735759002,0.15838187,3322.0,3319.7,0.15625617]
[1768735759202,0.15838187,3321.8,3319.7,0.15625617]
[1768735759402,0.15838187,3321.6,3319.7,0.15625617]
[1768735759603,1.1672949,3321.5,3319.7,0.15625617]
[1768735759802,1.00891303,3321.4,3319.7,0.15625617]
[1768735759998,1.00891303,3321.3,3319.7,0.15625617]
[1768735760196,0.15838187,3321.5,3319.7,0.15625617]
[1768735760405,1.00872889,3321.4,3319.7,0.15625617]
[1768735760594,1.00872889,3321.3,3319.7,0.15625617]
[1768735760796,0.15838187,3321.5,3319.7,0.15625617]
[1768735760990,1.00872516,3321.4,3319.7,0.15625617]
[1768735761198,1.00872516,3321.3,3319.7,0.15625617]
[1768735761492,0.15838187,3321.5,3319.7,0.15625617]
[1768735761691,1.00865854,3321.4,3319.7,0.15625617]
[1768735761892,1.00865854,3321.3,3319.7,0.15625617]
[1768735762105,0.15838187,3321.5,3319.7,0.15625617]
[1768735762308,1.00861485,3321.4,3319.7,0.15625617]
[1768735762605,1.00861485,3321.3,3319.7,0.15625617]
[1768735762802,0.15838187,3321.5,3319.7,0.15625617]
[1768735763014,1.00860208,3321.4,3319.7,0.15625617]
[1768735763303,0.15838187,3321.5,3319.7,0.15625617]
[1768735763304,1.00860208,3321.3,3319.7,0.15625617]
[1768735763504,0.15838187,3321.5,3319.7,0.15625617]
[1768735763701,1.00855765,3321.4,3319.7,0.15625617]
[1768735763901,1.00855765,3321.3,3319.7,0.15625617]
[1768735764102,0.15838187,3321.5,3319.7,0.15625617]
[1768735764298,1.00853253,3321.4,3319.7,0.15625617]
[1768735764500,1.00853253,3321.3,3319.7,0.15625617]
[1768735764702,0.15838187,3321.5,3319.7,0.15625617]
[1768735765005,1.00852123,3321.4,3319.7,0.15625617]
[1768735765204,0.15838187,3321.5,3319.7,0.15625617]
[1768735765205,1.00852123,3321.3,3319.7,0.15625617]
[1768735765504,0.15838187,3321.5,3319.7,0.15625617]
[1768735765711,1.00849154,3321.4,3319.7,0.15625617]
[1768735765899,1.00849154,3321.3,3319.7,0.15625617]
[1768735766101,0.15838187,3321.5,3319.7,0.15625617]
[1768735766304,1.00847706,3321.4,3319.7,0.15625617]
[1768735766506,1.00847706,3321.3,3319.7,0.15625617]
[1768735766705,0.15838187,3321.5,3319.7,0.15625617]
[1768735766906,1.00846893,3321.4,3319.7,0.15625617]
[1768735767097,1.00846893,3321.3,3319.7,0.15625617]
[1768735767410,0.15838187,3321.5,3319.7,0.15625617]
[1768735767712,1.0084529,3321.4,3319.7,0.15625617]
[1768735768010,0.15838187,3321.5,3319.7,0.15625617]
[1768735768011,1.0084529,3321.3,3319.7,0.15625617]
[1768735768202,0.15838187,3321.5,3319.7,0.15625617]
[1768735768402,1.00843865,3321.4,3319.7,0.15625617]
[1768735768614,1.00843865,3321.3,3319.7,0.15625617]
[1768735768913,0.15838187,3321.5,3319.7,0.15625617]
[1768735769112,1.00836773,3321.4,3319.7,0.15625617]
[1768735769409,1.00836426,3321.3,3319.7,0.15625617]
[1768735769609,0.15838187,3321.5,3319.7,0.15625617]
[1768735769801,1.00836426,3321.4,3319.7,0.15625617]
[1768735769997,1.00836426,3321.3,3319.7,0.15625617]
[1768735770204,0.15838187,3321.5,3319.7,0.15625617]
[1768735770401,1.00836542,3321.4,3319.7,0.15625617]
[1768735770607,1.00836542,3321.3,3319.7,0.15625617]
[1768735770907,0.15838187,3321.5,3319.7,0.15625617]
[1768735771109,1.00836527,3321.4,3319.7,0.15625617]
[1768735771307,1.00836527,3321.3,3319.7,0.15625617]
[1768735771511,0.15838187,3321.5,3319.7,0.15625617]
[1768735771713,1.00836864,3321.4,3319.7,0.15625617]
[1768735772009,1.00836864,3321.3,3319.7,0.15625617]
[1768735772205,0.15838187,3321.5,3319.7,0.15625617]
[1768735772410,1.02102251,3321.4,3319.7,0.15625617]
[1768735772606,1.02102251,3321.3,3319.7,0.15625617]
[1768735772807,0.15838187,3321.5,3319.7,0.15625617]
[1768735772998,1.02105439,3321.4,3319.7,0.15625617]
[1768735773202,1.02105439,3321.3,3319.7,0.15625617]
[1768735773414,0.15838187,3321.5,3319.7,0.15625617]
[1768735773609,1.02106886,3321.4,3319.7,0.15625617]
[1768735773810,1.02106886,3321.3,3319.7,0.15625617]
[1768735774012,0.15838187,3321.5,3319.7,0.15625617]
[1768735774210,1.02106886,3321.4,3319.7,0.15625617]
[1768735774409,1.02106886,3321.3,3319.7,0.15625617]
[1768735774612,0.15838187,3321.5,3319.7,0.15625617]
[1768735774807,1.02109202,3321.4,3319.7,0.15625617]
[1768735775009,1.02109202,3321.3,3319.7,0.15625617]
[1768735775212,0.15014781,3322.0,3319.7,0.15625617]
[1768735775515,0.15014781,3321.8,3319.7,0.15625617]
[1768735775702,1.17654888,3321.7,3319.7,0.15625617]
[1768735775907,1.02111921,3321.6,3319.7,0.15625617]
[1768735776118,1.02111921,3321.5,3319.7,0.15625617]
[1768735776407,1.02111921,3321.4,3319.7,0.15625617]
[1768735776608,1.02111921,3321.3,3319.7,0.15625617]
[1768735776810,0.15542967,3321.7,3319.7,0.15625617]
[1768735777009,1.02114902,3321.6,3319.7,0.15625617]
[1768735777209,1.02114902,3321.5,3319.7,0.15625617]
[1768735777514,1.02114902,3321.4,3319.7,0.15625617]
[1768735777810,1.02114902,3321.3,3319.7,0.15625617]
[1768735778009,0.15542967,3321.7,3319.7,0.15625617]
[1768735778220,1.02124392,3321.6,3319.7,0.15625617]
[1768735778517,1.02124392,3321.5,3319.7,0.15625617]
[1768735778711,1.02124392,3321.4,3319.7,0.15625617]
[1768735778911,0.15542967,3321.7,3319.7,0.15625617]
[1768735779217,1.02129277,3321.6,3319.7,0.15625617]
[1768735779409,1.02129277,3321.5,3319.7,0.15625617]
[1768735779613,1.02129277,3321.4,3319.7,0.15625617]
[1768735779814,0.15542967,3321.7,3319.7,0.15625617]
[1768735780015,1.02134581,3321.6,3319.7,0.15625617]
[1768735780213,1.02134581,3321.5,3319.7,0.15625617]
[1768735780413,1.02134581,3321.4,3319.7,0.15625617]
[1768735780613,0.15542967,3321.7,3319.7,0.15625617]
[1768735780821,1.0214059,3321.6,3319.7,0.15625617]
[1768735781012,1.0214059,3321.5,3319.7,0.15625617]
[1768735781215,1.0214059,3321.4,3319.7,0.15625617]
[1768735781418,0.15542967,3321.7,3319.7,0.15625617]
[1768735781724,1.17689964,3321.6,3319.7,0.15625617]
[1768735781925,1.02146997,3321.5,3319.7,0.15625617]
[1768735782218,1.02146997,3321.4,3319.7,0.15625617]
[1768735782519,0.15542967,3321.6,3319.7,0.15625617]
[1768735782718,1.02154232,3321.5,3319.7,0.15625617]
[1768735782920,0.15542967,3321.3,3319.6,0.00337338]
[1768735783217,1.02158741,3321.2,3319.6,0.00337338]
[1768735783418,0.15542967,3321.3,3319.6,0.00337338]
[1768735783630,1.0215874,3321.2,3319.6,0.00337338]
[1768735783830,0.15542967,3321.3,3319.6,0.00337338]
[1768735784029,1.02158729,3321.2,3319.6,0.00337338]
[1768735784230,0.15542967,3321.3,3319.6,0.00337338]
[1768735784436,1.02170793,3321.2,3319.6,0.00337338]
[1768735784621,0.15542967,3321.3,3319.6,0.00337338]
[1768735784821,1.02170793,3321.2,3319.6,0.00337338]
[1768735785030,0.15542967,3321.3,3319.6,0.00337338]
[1768735785332,1.02170793,3321.2,3319.6,0.00337338]
[1768735785632,0.15542967,3321.3,3319.6,0.00337338]
[1768735785833,1.17729717,3321.2,3319.6,0.00337338]
[1768735786026,0.15542967,3321.2,3319.6,0.00337338]
[1768735802155,0.15890142,3321.0,3319.6,0.00337338]
[1768735806938,0.15890142,3320.8,3319.6,0.00337338]
[1768735836088,1.02001258,3320.7,3319.6,0.00337338]
[1768735836290,0.15890142,3320.8,3319.6,0.00337338]
[1768735836475,1.0200118,3320.7,3319.6,0.00337338]
[1768735836680,0.15890142,3320.8,3319.6,0.00337338]
[1768735836882,1.02001261,3320.7,3319.6,0.00337338]
[1768735837187,0.15890142,3320.8,3319.6,0.00337338]
[1768735837390,1.02001347,3320.7,3319.6,0.00337338]
[1768735837585,0.15890142,3320.8,3319.6,0.00337338]
[1768735837783,1.02001436,3320.7,3319.6,0.00337338]
[1768735837984,0.15890142,3320.8,3319.6,0.00337338]
[1768735838288,1.02001451,3320.7,3319.6,0.00337338]
[1768735838486,0.15890142,3320.8,3319.6,0.00337338]
[1768735838789,1.02001463,3320.7,3319.6,0.00337338]
[1768735838990,0.15890142,3320.8,3319.6,0.00337338]
[1768735839190,1.02001463,3320.7,3319.6,0.00337338]
[1768735839391,0.15890142,3320.8,3319.6,0.00337338]
[1768735839592,1.02001761,3320.7,3319.6,0.00337338]
[1768735839790,0.15890142,3320.8,3319.6,0.00337338]
[1768735840090,1.02014463,3320.7,3319.6,0.00337338]
[1768735840282,0.15890142,3320.8,3319.6,0.00337338]
[1768735840482,1.02014583,3320.7,3319.6,0.00337338]
[1768735840682,0.15890142,3320.8,3319.6,0.00337338]
[1768735840889,1.02014597,3320.7,3319.6,0.00337338]
[1768735841084,0.15890142,3320.8,3319.6,0.00337338]
[1768735841286,1.02014705,3320.7,3319.6,0.00337338]
[1768735841584,0.15890142,3320.8,3319.6,0.00337338]
[1768735841785,1.02013143,3320.7,3319.6,0.00337338]
[1768735841985,0.15890142,3320.8,3319.6,0.00337338]
[1768735842186,1.02013057,3320.7,3319.6,0.00337338]
[1768735842386,0.15890142,3320.8,3319.6,0.00337338]
[1768735842691,1.02013142,3320.7,3319.6,0.00337338]
[1768735842892,0.15890142,3320.8,3319.6,0.00337338]
[1768735843190,1.02013142,3320.7,3319.6,0.00337338]
[1768735843492,0.15890142,3320.8,3319.6,0.00337338]
[1768735843692,1.02013142,3320.7,3319.6,0.00337338]
[1768735843893,0.15890142,3320.8,3319.6,0.00337338]
[1768735844096,1.02013141,3320.7,3319.6,0.00337338]
[1768735844281,0.15890142,3320.8,3319.6,0.00337338]
[1768735844485,1.02013131,3320.7,3319.6,0.00337338]
[1768735844692,0.15890142,3320.8,3319.6,0.00337338]
[1768735844894,1.02013141,3320.7,3319.6,0.00337338]
[1768735845095,0.15890142,3320.8,3319.6,0.00337338]
[1768735845296,1.02013244,3320.7,3319.6,0.00337338]
[1768735845502,0.15890142,3320.8,3319.6,0.00337338]
[1768735845689,1.02013432,3320.7,3319.6,0.00337338]
[1768735845888,0.15890142,3320.8,3319.6,0.00337338]
[1768735846094,1.02013785,3320.7,3319.6,0.00337338]
[1768735846398,0.15890142,3320.8,3319.6,0.00337338]
[1768735846599,1.02013861,3320.7,3319.6,0.00337338]
[1768735846794,0.15890142,3320.8,3319.6,0.00337338]
[1768735846995,1.02014014,3320.7,3319.6,0.00337338]
[1768735847197,0.15890142,3320.8,3319.6,0.00337338]
[1768735847397,1.02014077,3320.7,3319.6,0.00337338]
[1768735847600,0.15890142,3320.8,3319.6,0.00337338]
[1768735847793,1.02014068,3320.7,3319.6,0.00337338]
[1768735848093,0.15890142,3320.8,3319.6,0.00337338]
[1768735848291,1.02014107,3320.7,3319.6,0.00337338]
[1768735848494,0.15890142,3320.8,3319.6,0.00337338]
[1768735848695,1.02014175,3320.7,3319.6,0.00337338]
[1768735848901,0.15890142,3320.8,3319.6,0.00337338]
[1768735849099,1.02014165,3320.7,3319.6,0.00337338]
[1768735849302,0.15890142,3320.8,3319.6,0.00337338]
[1768735849502,1.02014114,3320.7,3319.6,0.00337338]
[1768735849799,0.15890142,3320.8,3319.6,0.00337338]
[1768735850002,1.0201397,3320.7,3319.6,0.00337338]
[1768735850299,0.15890142,3320.8,3319.6,0.00337338]
[1768735850495,1.02014162,3320.7,3319.6,0.00337338]
[1768735850685,0.15890142,3320.8,3319.6,0.00337338]
[1768735850888,1.0201412,3320.7,3319.6,0.00337338]
[1768735851090,0.15890142,3320.8,3319.6,0.00337338]
[1768735851300,1.02014167,3320.7,3319.6,0.00337338]
[1768735851492,0.15890142,3320.8,3319.6,0.00337338]
[1768735851693,1.0201416,3320.7,3319.6,0.00337338]
[1768735851900,0.15890142,3320.8,3319.6,0.00337338]
[1768735852100,1.02014167,3320.7,3319.6,0.00337338]
[1768735852302,0.15890142,3320.8,3319.6,0.00337338]
[1768735852500,1.02014191,3320.7,3319.6,0.00337338]
[1768735852801,0.15890142,3320.8,3319.6,0.00337338]
[1768735853001,1.02014191,3320.7,3319.6,0.00337338]
[1768735853199,0.15890142,3320.8,3319.6,0.00337338]
[1768735853398,1.02014251,3320.7,3319.6,0.00337338]
[1768735853601,0.15890142,3320.8,3319.6,0.00337338]
[1768735853801,1.02014293,3320.7,3319.6,0.00337338]
[1768735854002,0.15890142,3320.8,3319.6,0.00337338]
[1768735854203,1.02014301,3320.7,3319.6,0.00337338]
[1768735854403,0.15890142,3320.8,3319.6,0.00337338]
[1768735854605,1.02014296,3320.7,3319.6,0.00337338]
[1768735854806,0.15890142,3320.8,3319.6,0.00337338]
[1768735854998,1.02014204,3320.7,3319.6,0.00337338]
[1768735855199,0.15890142,3320.8,3319.6,0.00337338]
[1768735855405,1.02014251,3320.7,3319.6,0.00337338]
[1768735855702,0.15890142,3320.8,3319.6,0.00337338]
[1768735855997,1.02014241,3320.7,3319.6,0.00337338]
[1768735856198,0.15890142,3320.8,3319.6,0.00337338]
[1768735856400,1.02014175,3320.7,3319.6,0.00337338]
[1768735856601,0.15890142,3320.8,3319.6,0.00337338]
[1768735856807,1.02014176,3320.7,3319.6,0.00337338]
[1768735857104,0.15890142,3320.8,3319.6,0.00337338]
[1768735857306,1.02014312,3320.7,3319.6,0.00337338]
[1768735857605,0.15890142,3320.8,3319.6,0.00337338]
[1768735857806,1.02014308,3320.7,3319.6,0.00337338]
[1768735858006,0.15890142,3320.8,3319.6,0.00337338]
[1768735858206,1.02014311,3320.7,3319.6,0.00337338]
[1768735858407,0.15890142,3320.8,3319.6,0.00337338]
[1768735858608,1.0201436,3320.7,3319.6,0.00337338]
[1768735858807,0.15890142,3320.8,3319.6,0.00337338]
[1768735859011,1.16682903,3320.7,3319.6,0.00337338]
[1768735859201,0.14668549,3320.7,3319.6,0.00337338]
[1768735862511,0.14668549,3321.5,3319.6,0.00337338]